bitfinex-derivatives/quotes_ETHF0:USTF0_20230402
["timestamp","ask_amount","ask_price","bid_price","bid_amount"]
[1680473715542,2.70281223,1782.8,1782.4,3.2078]
[1680473715933,1.70281223,1782.8,1782.4,3.2078]
[1680473717033,1.122,1782.8,1782.4,3.2078]
[1680473717236,1.70281223,1782.8,1782.4,3.2078]
[1680473717433,1.122,1782.8,1782.4,3.2078]
[1680473717832,1.122,1782.8,1782.6,3.2078]
[1680473718237,1.122,1782.8,1782.7,0.20722075]
[1680473718540,1.122,1782.8,1782.6,3.2078]
[1680473719635,1.122,1782.8,1782.6,3.20290682]
[1680473721340,1.122,1782.8,1782.4,3.2078]
[1680473722043,1.115,1782.7,1782.4,3.2078]
[1680473731244,0.58081223,1782.8,1782.4,4.3258]
[1680473731446,1.14498193,1782.9,1782.6,4.3238]
[1680473731747,0.58081223,1783.0,1782.7,1.0]
[1680473731951,1.12997428,1783.0,1782.8,3.2078]
[1680473732646,0.58081223,1783.0,1782.8,3.2078]
[1680473733350,0.58081223,1783.0,1782.9,0.25474517]
[1680473733543,0.87121835,1783.0,1782.9,0.25474517]
[1680473734443,0.87121835,1783.0,1782.8,3.2078]
[1680473734638,0.5804544,1782.9,1782.8,3.2078]
[1680473735446,1.45167275,1782.9,1782.8,3.2078]
[1680473736251,0.5804544,1782.9,1782.8,3.2078]
[1680473737460,1.45167275,1782.9,1782.8,3.2078]
[1680473739253,0.5804544,1782.9,1782.8,3.2078]
[1680473739445,1.45167275,1782.9,1782.8,3.2078]
[1680473740952,0.5804544,1782.9,1782.8,3.2078]
[1680473741355,0.87121835,1782.9,1782.8,3.2078]
[1680473741545,1.45247588,1782.9,1782.8,3.2078]
[1680473741746,0.58125753,1782.9,1782.8,3.2078]
[1680473742058,0.58125753,1783.0,1782.8,5.4518]
[1680473742251,2.01007776,1783.3,1782.9,2.00112181]
[1680473742455,2.01007776,1783.3,1783.2,3.2078]
[1680473742456,1.13885941,1783.3,1783.2,3.2078]
[1680473742650,0.58125753,1783.3,1783.2,3.2078]
[1680473743553,1.45247588,1783.4,1783.2,4.3298]
[1680473743759,0.87121835,1783.4,1783.3,1.122]
[1680473743953,1.45221712,1783.4,1783.3,1.122]
[1680473744153,0.87121835,1783.4,1783.3,1.122]
[1680473744756,0.87121835,1783.4,1783.2,3.2078]
[1680473745059,2.115,1783.3,1783.2,3.2078]
[1680473745965,1.115,1783.3,1783.2,3.2078]
[1680473747159,0.58064027,1783.4,1783.2,3.2078]
[1680473747352,0.58064027,1783.4,1783.0,4.3298]
[1680473747852,0.58064027,1783.4,1783.2,3.2078]
[1680473748361,0.58064027,1783.4,1783.3,0.47636892]
[1680473748750,1.70264027,1783.5,1783.3,0.47636892]
[1680473748955,0.58064027,1783.5,1783.4,3.2078]
[1680473749157,1.45185862,1783.6,1783.4,3.2078]
[1680473749460,0.58064027,1783.6,1783.4,3.2078]
[1680473750259,2.45185862,1783.6,1783.4,3.2078]
[1680473750464,1.45185862,1783.6,1783.4,3.2078]
[1680473751060,0.58064027,1783.6,1783.4,3.2078]
[1680473751760,1.45185862,1783.7,1783.5,1.114]
[1680473751967,0.58064027,1783.7,1783.6,3.2078]
[1680473752265,0.58064027,1783.7,1783.6,4.3258]
[1680473752961,1.15367069,1783.8,1783.6,4.3258]
[1680473753566,0.58064027,1783.8,1783.6,4.3258]
[1680473754658,1.45185862,1783.9,1783.6,4.3258]
[1680473755168,0.58064027,1783.9,1783.6,4.3258]
[1680473756173,1.15345049,1783.9,1783.6,4.3258]
[1680473756363,1.15345049,1783.9,1783.8,3.2078]
[1680473757172,2.15345049,1783.9,1783.8,3.2078]
[1680473757368,1.15345049,1783.9,1783.8,3.2078]
[1680473757670,0.57281022,1783.9,1783.8,3.2078]
[1680473757870,3.26194091,1784.0,1783.8,3.2078]
[1680473758167,3.81867945,1784.0,1783.8,3.2078]
[1680473758771,1.0,1783.9,1783.8,3.2078]
[1680473759572,1.0,1783.9,1783.6,4.3258]
[1680473759866,3.81867945,1784.0,1783.6,4.3258]
[1680473760072,1.0,1783.9,1783.7,0.75650717]
[1680473762073,2.12,1783.9,1783.7,0.75650717]
[1680473763167,1.12,1783.9,1783.7,0.5626336]
[1680473763872,2.12,1783.9,1783.7,0.5626336]
[1680473764674,1.12,1783.9,1783.7,0.5626336]
[1680473765175,1.12,1783.9,1783.8,3.2078]
[1680473767779,1.13737881,1784.0,1783.8,3.2078]
[1680473767971,0.55673854,1784.0,1783.8,4.98044823]
[1680473768173,2.27287308,1784.2,1783.8,4.98044823]
[1680473768674,1.15054523,1784.2,1783.8,4.98044823]
[1680473771474,0.56990496,1784.2,1784.0,3.2078]
[1680473771674,1.58064027,1784.2,1783.8,4.98044823]
[1680473772073,2.70164027,1784.2,1783.8,4.98044823]
[1680473772276,2.121,1784.2,1783.8,4.98044823]
[1680473772985,2.70164027,1784.2,1783.8,4.98044823]
[1680473775095,2.121,1784.1,1783.8,3.86644823]
[1680473775291,1.121,1783.9,1783.8,0.65864823]
[1680473775590,0.658,1783.8,1783.2,8.2098]
[1680473775792,1.121,1783.6,1783.2,3.2078]
[1680473776188,1.118,1783.7,1783.4,3.2078]
[1680473776892,1.118,1783.7,1783.3,1.121]
[1680473777092,2.118,1783.7,1783.3,1.121]
[1680473777283,1.118,1783.7,1783.3,1.121]
[1680473777688,1.12,1783.6,1783.2,3.2078]
[1680473777889,2.12,1783.6,1783.1,1.118]
[1680473778798,5.3278,1783.6,1783.1,1.118]
[1680473779191,4.3278,1783.6,1783.1,1.118]
[1680473779591,1.121,1783.4,1783.0,3.76893986]
[1680473779794,1.121,1783.4,1783.0,3.2078]
[1680473782797,1.121,1783.4,1783.0,3.79482353]
[1680473783098,1.121,1783.4,1783.1,0.29269496]
[1680473783294,1.121,1783.4,1783.1,1.29269496]
[1680473783602,1.121,1783.4,1783.1,0.29269496]
[1680473786906,1.70164027,1783.4,1783.1,0.87971849]
[1680473788008,0.58064027,1783.5,1783.1,3.8738403]
[1680473788210,0.58064027,1783.5,1783.2,3.2078]
[1680473790201,0.58064027,1783.5,1783.3,2.121]
[1680473791000,0.58064027,1783.5,1783.3,1.121]
[1680473792709,0.58064027,1783.5,1783.4,5.3288]
[1680473792902,0.58064027,1783.6,1783.4,5.3288]
[1680473793409,0.58064027,1783.6,1783.5,1.41227204]
[1680473794120,0.58064027,1783.6,1783.5,0.41227204]
[1680473794816,1.45185862,1783.6,1783.5,0.41227204]
[1680473795711,1.45185862,1783.6,1783.5,1.53327204]
[1680473796012,1.45185862,1783.8,1783.6,1.0]
[1680473796206,1.45185862,1783.8,1783.7,4.3228]
[1680473796604,0.87121835,1783.8,1783.7,4.3228]
[1680473797417,1.45296482,1783.8,1783.7,4.3228]
[1680473797618,0.87121835,1783.8,1783.7,4.3228]
[1680473798613,0.87121835,1783.8,1783.7,3.2078]
[1680473799414,0.87121835,1783.8,1783.7,4.3228]
[1680473801915,1.45300195,1783.8,1783.7,4.3228]
[1680473802420,0.87121835,1783.8,1783.7,4.3228]
[1680473802821,0.5817927,1784.0,1783.7,6.02682353]
[1680473803023,0.5817927,1784.0,1783.9,4.3288]
[1680473803219,0.5817927,1784.0,1783.8,1.11]
[1680473803414,1.45301105,1784.0,1783.8,1.11]
[1680473803824,0.5817927,1783.9,1783.8,1.11]
[1680473805226,1.45301105,1784.0,1783.8,1.11]
[1680473805426,0.5817927,1783.9,1783.8,1.11]
[1680473806114,1.45301105,1784.0,1783.8,1.11]
[1680473806322,0.5817927,1783.9,1783.8,1.11]
[1680473806529,1.45301105,1784.0,1783.8,1.11]
[1680473807128,0.5817927,1784.0,1783.9,3.2078]
[1680473807428,0.87121835,1784.0,1783.6,4.90482353]
[1680473807727,0.58171474,1783.8,1783.5,0.99929557]
[1680473809631,0.58171474,1783.8,1783.5,0.41227204]
[1680473810629,1.45293309,1783.8,1783.5,0.41227204]
[1680473810828,0.58171474,1783.7,1783.5,0.41227204]
[1680473811230,1.45293309,1783.8,1783.5,0.41227204]
[1680473811927,0.58171474,1783.7,1783.5,0.41227204]
[1680473812130,1.69371474,1783.7,1783.5,0.41227204]
[1680473812324,1.69371474,1783.7,1783.5,0.23361747]
[1680473813030,2.56493309,1783.7,1783.5,0.23361747]
[1680473813432,1.69371474,1783.7,1783.5,0.23361747]
[1680473813633,0.58171474,1783.6,1783.5,0.23361747]
[1680473814333,2.56493309,1783.7,1783.5,0.23361747]
[1680473815025,0.58171474,1783.6,1783.5,0.23361747]
[1680473817633,3.12723375,1783.7,1783.5,0.23361747]
[1680473817829,2.2560154,1783.7,1783.5,0.23361747]
[1680473818136,3.12723375,1783.7,1783.5,0.23361747]
[1680473818332,2.2560154,1783.7,1783.5,0.23361747]
[1680473818533,2.56493309,1783.7,1783.5,0.23361747]
[1680473822739,1.45293309,1783.7,1783.5,1.35461747]
[1680473822931,0.58171474,1783.6,1783.5,0.23361747]
[1680473824839,1.45293309,1783.7,1783.5,0.23361747]
[1680473825242,0.58171474,1783.7,1783.5,2.35461747]
[1680473825431,0.58171474,1783.7,1783.5,1.35461747]
[1680473825738,0.58171474,1783.7,1783.5,2.35461747]
[1680473826933,0.58171474,1783.7,1783.6,1.0]
[1680473827139,0.58171474,1783.7,1783.6,4.2078]
[1680473827339,0.58171474,1783.7,1783.6,4.4343199]
[1680473828233,0.58171474,1783.7,1783.6,3.4343199]
[1680473833043,0.58171474,1783.7,1783.6,4.02134343]
[1680473833549,0.58171474,1783.7,1783.6,3.4343199]
[1680473834945,0.58171474,1783.7,1783.6,4.02134343]
[1680473838451,0.58171474,1783.7,1783.6,4.18350541]
[1680473840853,0.58171474,1783.7,1783.6,5.06262722]
[1680473842048,0.58171474,1783.7,1783.6,5.90262722]
[1680473842246,0.58171474,1783.7,1783.6,5.02350541]
[1680473843553,2.29293309,1783.7,1783.6,0.97570541]
[1680473843760,2.71121835,1783.7,1783.6,0.2265199]
[1680473843954,1.84,1783.7,1783.6,0.2265199]
[1680473844257,1.84,1783.7,1783.5,0.58702353]
[1680473844454,2.29815675,1783.6,1783.5,0.58702353]
[1680473844952,2.29815675,1783.6,1783.2,1.46249886]
[1680473844953,1.0,1783.5,1783.2,0.58755301]
[1680473845153,2.26315564,1783.3,1783.2,0.58755301]
[1680473845457,3.55473346,1783.3,1783.1,0.58755301]
[1680473845656,1.41712842,1783.2,1783.1,0.58755301]
[1680473845864,1.41712842,1783.2,1783.0,1.46888253]
[1680473846159,0.84,1783.1,1783.0,0.58755301]
[1680473846957,1.42312842,1783.1,1782.9,0.58755301]
[1680473847158,1.115,1783.0,1782.9,1.46888253]
[1680473847362,1.115,1783.0,1782.9,1.46860434]
[1680473847554,1.115,1783.0,1782.9,0.88132952]
[1680473847751,2.115,1783.0,1782.9,0.5868991]
[1680473847965,3.81312842,1783.0,1782.7,4.67602862]
[1680473848258,1.119,1782.8,1782.7,4.67602862]
[1680473848462,1.115,1782.8,1782.7,0.5868991]
[1680473848756,1.0,1782.7,1782.6,0.5868991]
[1680473848955,10.27586188,1782.7,1782.3,0.88132952]
[1680473849165,1.119,1782.4,1782.2,0.88132952]
[1680473849359,4.79000705,1782.6,1782.1,1.16675795]
[1680473849360,1.112,1782.3,1782.1,1.16675795]
[1680473849556,1.112,1782.3,1782.2,1.16675795]
[1680473849954,1.112,1782.3,1782.2,0.88070818]
[1680473850860,1.112,1782.3,1782.1,0.88070818]
[1680473851059,1.112,1782.3,1782.0,0.88070818]
[1680473851456,1.114,1782.1,1781.9,0.88070818]
[1680473852063,4.3298,1782.2,1781.9,0.88070818]
[1680473852465,4.3298,1782.2,1781.9,1.88070818]
[1680473852663,3.2078,1782.2,1782.0,1.0]
[1680473853458,0.29049624,1782.1,1782.0,1.0]
[1680473854662,0.29049624,1782.1,1781.9,2.118]
[1680473855263,0.29049624,1782.1,1781.9,5.3258]
[1680473855664,0.55704848,1782.3,1781.9,5.3258]
[1680473855862,4.3248,1782.4,1781.9,5.3258]
[1680473857064,4.3248,1782.4,1781.9,4.3258]
[1680473857264,1.122,1782.3,1781.9,3.2078]
[1680473857474,2.122,1782.3,1781.9,3.2078]
[1680473857670,1.122,1782.3,1781.9,3.2078]
[1680473859669,1.118,1782.1,1781.7,3.2078]
[1680473862271,1.119,1782.0,1781.7,3.2078]
[1680473865268,1.119,1782.0,1781.5,5.3258]
[1680473865469,4.3268,1782.0,1781.5,5.3258]
[1680473865970,4.3268,1782.0,1781.5,4.3258]
[1680473866364,4.3268,1782.0,1781.5,3.2078]
[1680473866365,1.118,1781.8,1781.5,3.2078]
[1680473868072,0.50588362,1781.7,1781.5,3.2078]
[1680473868572,1.62788362,1781.7,1781.1,4.2078]
[1680473868871,1.122,1781.4,1781.1,3.2078]
[1680473869478,1.0,1781.6,1781.3,3.2078]
[1680473869772,0.50588362,1781.7,1781.3,4.3258]
[1680473869968,0.50588362,1781.7,1781.3,1.118]
[1680473870275,0.50588362,1781.7,1781.4,1.0]
[1680473871173,0.50588362,1781.7,1781.6,2.114]
[1680473871376,3.2078,1782.1,1781.6,2.114]
[1680473871681,3.2078,1782.1,1781.7,1.117]
[1680473872175,4.3258,1782.1,1781.6,2.114]
[1680473873575,4.3258,1782.1,1781.6,1.114]
[1680473878282,1.119,1781.7,1781.4,3.2078]
[1680473878469,1.122,1781.5,1781.2,3.2078]
[1680473879378,4.3298,1781.7,1781.3,1.0]
[1680473880877,1.0,1782.1,1781.6,1.118]
[1680473880878,4.3298,1782.1,1781.6,1.118]
[1680473881078,4.3298,1782.1,1781.7,1.0]
[1680473881371,4.3298,1782.1,1781.6,4.3258]
[1680473882083,1.122,1782.0,1781.6,3.2078]
[1680473883180,0.37285892,1781.9,1781.6,3.2078]
[1680473884283,1.122,1781.8,1781.4,4.3198]
[1680473885390,1.122,1781.8,1781.4,3.2078]
[1680473885678,5.4408,1781.5,1781.0,0.1]
[1680473885884,1.122,1781.3,1781.0,3.3078]
[1680473886078,1.113,1781.5,1781.0,4.4278]
[1680473886280,1.122,1781.7,1781.2,4.3298]
[1680473886978,1.113,1781.5,1781.2,3.2078]
[1680473887285,1.113,1781.5,1781.0,5.4298]
[1680473887490,1.113,1781.5,1781.0,4.4298]
[1680473888089,1.113,1781.5,1781.1,1.0]
[1680473889389,1.113,1781.5,1781.0,4.4298]
[1680473891888,1.113,1781.5,1781.1,1.0]
[1680473892888,3.2078,1781.4,1781.0,4.4298]
[1680473893992,3.2078,1781.4,1781.0,5.31050818]
[1680473894393,1.113,1781.5,1781.0,5.31050818]
[1680473895491,4.3208,1781.5,1781.0,5.31050818]
[1680473898196,0.60436224,1781.4,1781.0,5.31050818]
[1680473899686,0.60436224,1781.4,1781.1,1.88070818]
[1680473900281,0.60436224,1781.4,1781.3,1.122]
[1680473900688,1.66256209,1781.8,1781.3,1.122]
[1680473900889,1.66256209,1781.8,1781.2,4.08850818]
[1680473900890,1.113,1781.6,1781.2,5.20850818]
[1680473902193,1.113,1781.8,1781.4,3.2078]
[1680473902496,1.113,1781.8,1781.5,1.0]
[1680473902788,1.113,1781.8,1781.4,3.2078]
[1680473904995,2.80282686,1781.8,1781.4,3.2078]
[1680473905298,1.113,1781.6,1781.4,3.2078]
[1680473905496,1.113,1781.6,1781.3,0.88070818]
[1680473906802,1.113,1781.6,1781.4,0.88070818]
[1680473907901,2.114,1781.5,1781.2,0.88070818]
[1680473908094,2.114,1781.5,1781.1,0.88070818]
[1680473908095,1.122,1781.4,1781.1,0.88070818]
[1680473908294,1.122,1781.4,1781.2,0.88070818]
[1680473908500,1.122,1781.4,1781.1,0.88070818]
[1680473908895,1.122,1781.4,1781.2,0.88070818]
[1680473910400,1.122,1781.4,1781.1,0.88070818]
[1680473910697,1.122,1781.4,1781.0,0.1]
[1680473910698,2.113,1781.2,1781.0,0.1]
[1680473910901,8.82600705,1781.3,1781.0,0.1]
[1680473910902,1.113,1781.1,1781.0,0.1]
[1680473911302,0.1,1781.0,1780.4,1.75499864]
[1680473911500,0.1,1781.0,1780.2,4.67626559]
[1680473911501,1.113,1780.5,1780.2,4.67626559]
[1680473911699,1.117,1780.6,1780.3,1.0]
[1680473911904,1.113,1780.4,1780.3,1.0]
[1680473912204,1.117,1780.6,1780.3,1.0]
[1680473913102,0.99512146,1780.5,1780.3,1.0]
[1680473913507,0.99512146,1780.5,1780.4,3.2078]
[1680473917502,1.114,1780.7,1780.5,1.0]
[1680473918303,1.114,1780.7,1780.4,3.2078]
[1680473921509,1.123,1780.6,1780.4,3.2078]
[1680473922101,1.114,1780.5,1780.4,3.2078]
[1680473922506,1.123,1780.6,1780.4,3.2078]
[1680473924110,1.123,1780.6,1780.5,1.0]
[1680473925317,1.123,1780.6,1780.4,3.2078]
[1680473925617,3.27499204,1781.0,1780.5,1.0]
[1680473925618,1.123,1780.8,1780.5,1.0]
[1680473926312,1.123,1780.8,1780.6,3.2078]
[1680473928114,0.98847295,1780.7,1780.6,3.2078]
[1680473930013,0.98847295,1780.7,1780.4,1.0]
[1680473930219,1.123,1780.6,1780.2,4.2078]
[1680473930519,1.123,1780.6,1780.4,3.2078]
[1680473932321,1.123,1780.5,1780.2,4.2078]
[1680473932513,1.123,1780.5,1780.2,3.2078]
[1680473936219,1.123,1780.6,1780.2,3.2078]
[1680473936424,1.123,1780.6,1780.4,3.2078]
[1680473943129,0.98982161,1780.5,1780.4,3.2078]
[1680473952126,2.11282161,1780.5,1780.4,3.2078]
[1680473952525,2.11282161,1780.5,1780.3,1.17107303]
[1680473953430,2.11282161,1780.5,1780.4,1.17107303]
[1680473954327,2.11282161,1780.5,1780.4,4.37887303]
[1680473954931,2.11282161,1780.5,1780.4,1.17107303]
[1680473955530,2.11282161,1780.5,1780.4,1.46846559]
[1680473955731,2.11282161,1780.5,1780.4,1.17738908]
[1680473956028,2.11282161,1780.5,1780.3,1.46846559]
[1680473956235,2.11282161,1780.5,1780.4,1.17738658]
[1680473957334,2.11282161,1780.5,1780.4,1.46846559]
[1680473957737,3.22982161,1780.5,1780.4,1.17787022]
[1680473959331,1.177,1780.4,1780.2,0.84501495]
[1680473959534,1.177,1780.4,1780.0,0.15]
[1680473959535,2.8183404,1780.3,1780.0,1.62219714]
[1680473959727,2.234,1780.1,1780.0,0.15]
[1680473960432,2.234,1780.1,1779.5,1.75499864]
[1680473960433,5.588,1780.0,1779.5,1.75499864]
[1680473960627,1.123,1779.6,1779.5,1.0]
[1680473960825,1.123,1779.6,1779.3,1.75499864]
[1680473961028,1.117,1779.5,1779.3,1.75499864]
[1680473961233,1.117,1779.5,1779.4,3.2078]
[1680473961930,1.117,1779.8,1779.4,3.2078]
[1680473962129,4.78998238,1780.0,1779.6,3.2078]
[1680473962130,2.123,1779.9,1779.6,3.2078]
[1680473962330,1.0,1779.9,1779.6,4.3308]
[1680473962738,1.0,1780.0,1779.8,3.2078]
[1680473962937,2.122,1780.1,1779.8,3.2078]
[1680473962938,1.122,1780.1,1779.8,3.2078]
[1680473963535,1.113,1779.9,1779.7,1.0]
[1680473964044,1.122,1779.9,1779.8,3.2078]
[1680473964238,1.123,1780.1,1779.8,3.2078]
[1680473964439,2.123,1780.1,1780.0,3.2078]
[1680473964734,1.123,1780.1,1780.0,3.2078]
[1680473965247,2.113,1780.3,1780.0,3.2078]
[1680473965439,1.113,1780.3,1780.0,3.2078]
[1680473966233,1.121,1780.1,1780.0,3.2078]
[1680473970447,1.122,1780.3,1780.0,3.2078]
[1680473970648,1.122,1780.3,1780.1,1.0]
[1680473970944,1.122,1780.3,1780.2,3.2078]
[1680473972046,3.40327952,1780.4,1780.2,3.2078]
[1680473972247,1.113,1780.4,1780.3,1.0]
[1680473972844,1.113,1780.4,1780.2,3.2078]
[1680473973248,0.91152116,1780.3,1780.2,3.2078]
[1680473980552,0.91152116,1780.3,1780.2,4.08764186]
[1680473980754,0.55635689,1780.5,1780.2,5.08764186]
[1680473980958,1.117,1780.6,1780.4,3.2078]
[1680473986774,2.71218238,1780.9,1780.4,3.2078]
[1680473986775,1.123,1780.8,1780.4,3.2078]
[1680473986974,1.123,1780.8,1780.6,3.2078]
[1680473988378,0.56349669,1780.7,1780.6,3.2078]
[1680473988569,1.56349669,1780.7,1780.6,3.2078]
[1680473988770,2.68649669,1780.7,1780.4,3.2078]
[1680473988976,1.114,1780.6,1780.4,3.2078]
[1680473989777,0.56349669,1780.7,1780.5,1.0]
[1680473989979,0.56349669,1780.7,1780.6,3.2078]
[1680473991181,3.39799204,1781.0,1780.6,3.2078]
[1680473991371,3.39799204,1781.0,1780.9,3.2078]
[1680473991977,8.207,1780.9,1780.6,0.58654781]
[1680473992175,8.207,1780.9,1780.1,0.02914229]
[1680473992176,2.81818238,1780.7,1780.1,0.02914229]
[1680473992473,1.114,1780.2,1780.1,0.02914229]
[1680473992881,1.114,1780.2,1780.1,1.02914229]
[1680473993084,1.114,1780.3,1780.1,1.87984186]
[1680473993382,15.59827358,1780.8,1780.3,1.0]
[1680473993383,1.12,1780.5,1780.3,1.0]
[1680473993578,1.12,1780.5,1780.4,3.2078]
[1680473997284,1.12,1780.5,1780.2,4.08764186]
[1680473999694,1.12,1780.5,1780.3,1.0]
[1680474000291,1.12,1780.5,1780.3,1.87984186]
[1680474000488,2.98627358,1780.9,1780.4,4.08764186]
[1680474000489,1.114,1780.7,1780.4,4.08764186]
[1680474000694,1.114,1780.7,1780.6,3.2078]
[1680474002090,1.114,1780.8,1780.6,3.2078]
[1680474002590,1.114,1780.8,1780.3,0.87984186]
[1680474002591,5.0,1780.6,1780.3,0.87984186]
[1680474002782,5.0,1780.6,1780.0,1.0]
[1680474002783,1.12,1780.4,1780.0,0.87984186]
[1680474002981,1.114,1780.1,1780.0,0.87984186]
[1680474006197,1.75542179,1780.1,1780.0,0.87984186]
[1680474008590,0.58218238,1780.6,1780.1,0.36713058]
[1680474008896,0.58218238,1780.7,1780.3,2.00450919]
[1680474009394,1.114,1780.6,1780.3,4.08930919]
[1680474009590,1.114,1780.6,1780.3,0.88150919]
[1680474009899,1.114,1780.4,1780.3,0.88150919]
[1680474010394,1.114,1780.4,1780.3,4.08930919]
[1680474011397,1.114,1780.4,1780.3,3.2078]
[1680474011593,1.114,1780.6,1780.3,4.38314558]
[1680474011895,1.114,1780.6,1780.5,4.08968385]
[1680474012100,2.99627358,1780.9,1780.5,4.08968385]
[1680474012101,1.69618238,1780.9,1780.5,4.08968385]
[1680474012293,1.69618238,1780.9,1780.6,3.2078]
[1680474013294,1.69618238,1780.9,1780.6,4.08968385]
[1680474013591,1.114,1780.9,1780.8,3.2078]
[1680474015187,2.27270276,1781.0,1780.8,3.2078]
[1680474015797,2.27270276,1781.0,1780.6,4.08968385]
[1680474016193,0.18097031,1780.9,1780.8,3.2078]
[1680474016701,0.18097031,1780.9,1780.6,4.08968385]
[1680474017503,1.123,1780.8,1780.6,4.08968385]
[1680474020199,1.45545596,1781.1,1780.6,4.08968385]
[1680474020200,1.118,1781.0,1780.7,1.0]
[1680474020401,1.118,1781.0,1780.9,3.2078]
[1680474021504,1.67086436,1781.2,1781.0,1.0]
[1680474021696,1.116,1781.2,1781.1,3.2078]
[1680474022507,1.116,1781.3,1781.1,3.2078]
[1680474022698,1.69818238,1781.3,1781.1,3.2078]
[1680474022899,1.116,1781.3,1781.1,3.2078]
[1680474023400,0.08994848,1781.2,1781.1,3.2078]
[1680474023801,1.116,1781.3,1781.1,3.2078]
[1680474024007,1.66692407,1781.3,1781.1,3.2078]
[1680474024507,1.66692407,1781.3,1780.9,3.2078]
[1680474024704,1.66692407,1781.3,1781.0,1.0]
[1680474025005,1.66692407,1781.3,1781.1,3.2078]
[1680474025209,1.66692407,1781.3,1781.0,1.0]
[1680474025409,1.66692407,1781.3,1780.9,3.2078]
[1680474026608,1.66692407,1781.3,1781.1,3.2078]
[1680474028614,2.66692407,1781.3,1780.9,3.2078]
[1680474028812,0.09015409,1781.2,1780.9,3.2078]
[1680474029018,1.123,1781.0,1780.7,4.08968385]
[1680474029212,1.116,1780.9,1780.5,0.88188385]
[1680474029408,1.116,1780.9,1780.6,0.88188385]
[1680474029615,1.116,1780.9,1780.6,1.88188385]
[1680474029915,1.116,1780.9,1780.7,3.2078]
[1680474031718,1.116,1780.9,1780.5,0.88188385]
[1680474031719,1.118,1780.8,1780.5,0.88188385]
[1680474031925,1.123,1780.6,1780.4,4.08968385]
[1680474032125,1.123,1780.5,1780.4,4.08968385]
[1680474032516,1.0,1780.8,1780.4,4.08968385]
[1680474032517,1.118,1780.6,1780.4,4.08968385]
[1680474033130,1.123,1780.5,1780.4,3.2078]
[1680474033318,1.123,1780.5,1780.3,0.88188385]
[1680474033518,1.121,1780.4,1780.3,0.88188385]
[1680474035327,1.121,1780.4,1780.2,4.08968385]
[1680474035533,2.123,1780.3,1780.2,4.08968385]
[1680474035826,2.123,1780.3,1780.2,3.2078]
[1680474036018,2.123,1780.3,1780.0,0.88188385]
[1680474036019,1.119,1780.2,1780.0,0.88188385]
[1680474036216,1.123,1780.1,1779.9,2.05722943]
[1680474036428,1.123,1780.0,1779.8,4.08968385]
[1680474036628,1.123,1779.9,1779.7,0.88188385]
[1680474036832,1.121,1779.8,1779.7,0.88188385]
[1680474037028,1.121,1779.8,1779.6,4.08968385]
[1680474038520,0.75756319,1779.7,1779.5,0.88188385]
[1680474038722,1.75756319,1779.7,1779.5,0.88188385]
[1680474038930,0.75756319,1779.7,1779.6,0.88188385]
[1680474039322,0.75756319,1779.7,1779.5,1.88188385]
[1680474039532,0.75756319,1779.7,1779.5,0.88188385]
[1680474040131,0.75756319,1779.7,1779.6,4.2078]
[1680474040529,1.123,1779.9,1779.6,3.2078]
[1680474041620,4.2078,1780.1,1779.5,0.88188385]
[1680474041621,1.118,1779.7,1779.5,0.88188385]
[1680474041831,1.118,1779.7,1779.4,4.08968385]
[1680474042019,9.2078,1780.1,1779.4,4.08968385]
[1680474042020,1.116,1779.6,1779.4,4.08968385]
[1680474045030,1.116,1779.6,1779.4,3.2078]
[1680474047138,1.124,1779.6,1779.4,3.2078]
[1680474049835,2.248,1779.5,1779.2,4.08968385]
[1680474050136,1.124,1779.3,1779.2,4.08968385]
[1680474051027,1.124,1779.3,1779.2,3.2078]
[1680474052137,1.124,1779.5,1779.2,3.2078]
[1680474052640,10.5138,1779.3,1779.0,0.1]
[1680474052832,10.5138,1779.3,1778.5,0.00552152]
[1680474052833,5.4518,1779.1,1778.5,0.88324313]
[1680474053146,1.124,1778.6,1778.2,0.87772161]
[1680474053438,1.118,1778.5,1778.1,3.2078]
[1680474053942,1.118,1778.5,1778.3,1.0]
[1680474054233,1.124,1778.8,1778.3,5.3268]
[1680474054439,1.0,1778.9,1778.5,3.2078]
[1680474054731,1.0,1778.9,1778.3,1.0]
[1680474054732,1.74216605,1779.0,1778.3,1.0]
[1680474054932,4.94996605,1779.0,1778.3,1.0]
[1680474055138,1.119,1778.5,1778.3,1.0]
[1680474055433,1.119,1778.5,1778.1,4.2078]
[1680474055635,1.118,1778.7,1778.3,3.2078]
[1680474056034,1.10165414,1778.6,1778.3,3.2078]
[1680474056236,1.10165414,1778.6,1778.5,3.2078]
[1680474056538,1.124,1778.7,1778.3,3.2078]
[1680474056835,1.124,1778.7,1778.4,1.0]
[1680474057338,1.124,1778.7,1778.3,3.2078]
[1680474058739,1.0,1778.9,1778.3,3.2078]
[1680474058939,1.0,1778.9,1778.7,3.2078]
[1680474059139,0.57046992,1779.6,1778.8,2.248]
[1680474059335,1.119,1779.8,1779.2,1.124]
[1680474059636,3.41406501,1779.8,1779.3,3.2078]
[1680474059941,1.119,1779.8,1779.3,3.2078]
[1680474060147,1.0,1779.6,1779.3,3.2078]
[1680474060642,1.0,1779.6,1779.5,3.2078]
[1680474061139,1.119,1779.8,1779.5,3.2078]
[1680474062041,1.124,1779.8,1779.7,3.2078]
[1680474063243,1.118,1779.8,1779.4,3.2078]
[1680474063443,1.119,1779.7,1779.4,3.2078]
[1680474064640,1.119,1779.7,1779.6,3.2078]
[1680474065640,1.119,1779.7,1779.0,1.0]
[1680474065942,1.118,1779.6,1779.1,4.3268]
[1680474066240,1.118,1779.6,1779.2,1.0]